bitfinex/quotes_ETHUSD_20250623
["timestamp","ask_amount","ask_price","bid_price","bid_amount"]
[1750679436931,0.6189,2258.6,2258.1,10.0]
[1750679437761,0.6189,2258.6,2257.8,1.331189]
[1750679437928,0.6189,2258.6,2257.8,10.0]
[1750679438264,0.6189,2258.6,2257.7,10.28106982]
[1750679438836,0.6189,2258.6,2257.6,10.0]
[1750679439049,0.6189,2258.4,2257.6,22.97872156]
[1750679439245,1.964,2258.3,2257.7,0.7529]
[1750679439936,1.964,2258.3,2257.6,22.97872156]
[1750679440353,1.964,2258.3,2257.6,27.40819257]
[1750679440521,1.964,2258.3,2257.6,22.97872156]
[1750679441861,1.964,2258.3,2257.6,27.40819018]
[1750679442049,1.964,2258.3,2257.7,3.26328634]
[1750679443320,0.6189,2258.2,2257.4,10.72910564]
[1750679443581,0.6189,2258.2,2257.1,10.28106982]
[1750679443927,0.6189,2258.0,2257.1,10.28106982]
[1750679444159,0.6189,2258.0,2257.0,3.021213]
[1750679444339,0.6189,2257.8,2257.0,3.021213]
[1750679444661,10.0,2258.2,2257.0,3.021213]
[1750679444662,0.6189,2257.6,2257.0,3.021213]
[1750679444823,0.6189,2257.4,2257.0,3.021213]
[1750679445759,1.947,2257.3,2257.0,3.021213]
[1750679445950,1.947,2257.3,2257.1,10.28106982]
[1750679446261,1.947,2257.5,2257.1,10.28106982]
[1750679447563,1.947,2257.5,2257.1,10.0]
[1750679448049,0.6189,2257.6,2257.1,10.0]
[1750679448244,1.947,2257.4,2257.1,13.21636579]
[1750679449568,1.947,2257.4,2257.1,17.6466676]
[1750679450965,1.947,2257.4,2257.1,13.21636579]
[1750679452080,1.947,2257.4,2257.1,17.64682422]
[1750679452789,1.947,2257.4,2257.2,4.43024968]
[1750679453071,20.28106982,2258.6,2257.2,4.43024968]
[1750679453072,0.6189,2258.1,2257.4,4.42985627]
[1750679453260,1.947,2258.0,2257.4,4.42985627]
[1750679453468,1.947,2258.0,2257.3,6.19471107]
[1750679453469,1.947,2258.0,2257.3,6.19465292]
[1750679453642,1.947,2258.0,2257.3,11.76466155]
[1750679453840,2.20359,2258.0,2257.3,11.76466155]
[1750679454249,2.20359,2258.0,2257.3,16.19472991]
[1750679454454,1.947,2258.0,2257.3,11.76466155]
[1750679455779,1.947,2257.9,2257.4,4.42987488]
[1750679456079,1.947,2257.9,2257.3,11.76466155]
[1750679456080,1.947,2257.9,2257.3,16.19471858]
[1750679456245,1.947,2257.9,2257.3,11.76466155]
[1750679457643,0.6189,2257.8,2257.3,11.76466155]
[1750679457844,0.6189,2257.8,2257.4,1.70069195]
[1750679459082,0.6189,2257.8,2257.3,1.76466155]
[1750679459480,1.947,2257.7,2257.3,1.76466155]
[1750679460349,1.947,2257.7,2257.2,10.0]
[1750679460550,0.6189,2257.6,2257.2,10.0]
[1750679460879,0.6189,2257.6,2257.1,10.0]
[1750679461187,0.6189,2257.6,2257.1,20.28106982]
[1750679461570,1.947,2257.7,2257.2,0.8328]
[1750679461772,1.947,2257.7,2257.3,2.55441757]
[1750679463368,1.947,2257.7,2257.1,20.28106982]
[1750679464267,1.947,2257.7,2257.1,10.0]
[1750679464687,0.6189,2257.8,2257.2,10.28106982]
[1750679465001,1.947,2257.7,2257.3,14.42997804]
[1750679465201,1.947,2257.7,2257.3,10.0]
[1750679465410,1.947,2257.7,2257.3,12.91415772]
[1750679465562,1.947,2257.7,2257.3,17.34413129]
[1750679466064,0.25829,2258.5,2257.3,17.34413129]
[1750679466398,0.6189,2258.0,2257.5,10.28106982]
[1750679466559,1.947,2257.9,2257.5,20.28106982]
[1750679466757,1.947,2257.9,2257.5,23.12187694]
[1750679467300,1.947,2257.9,2257.5,13.12187694]
[1750679467500,0.6189,2258.0,2257.5,17.5514843]
[1750679467675,1.947,2258.0,2257.6,4.42934251]
[1750679468166,1.947,2258.0,2257.5,13.12187694]
[1750679468493,1.947,2258.0,2257.5,10.28106982]
[1750679468665,1.947,2258.0,2257.4,0.7829]
[1750679468862,0.6189,2257.9,2257.4,0.7829]
[1750679469198,0.6189,2257.9,2257.4,5.21270008]
[1750679469576,0.6189,2257.9,2257.4,0.7829]
[1750679469776,0.6189,2257.9,2257.4,3.77530952]
[1750679470263,0.6189,2257.9,2257.4,8.20518239]
[1750679470759,1.947,2257.9,2257.4,8.20518239]
[1750679472204,1.947,2257.9,2257.4,3.77530952]
[1750679472362,1.947,2257.9,2257.4,2.99240952]
[1750679473076,0.6189,2257.8,2257.3,10.0]
[1750679474518,0.6189,2257.8,2257.3,14.42997833]
[1750679474685,0.6189,2257.8,2257.4,4.42987218]
[1750679475113,0.6189,2257.8,2257.3,14.42995571]
[1750679475317,0.6189,2257.8,2257.4,2.98922024]
[1750679477284,0.6189,2257.8,2257.3,10.0]
[1750679479120,0.6189,2257.8,2257.1,10.0]
[1750679479277,0.6189,2257.8,2257.1,14.43045712]
[1750679479714,0.6189,2257.8,2257.1,10.0]
[1750679480216,0.6189,2257.8,2257.0,13.30228282]
[1750679480379,1.947,2257.9,2257.0,13.30228282]
[1750679480380,0.6189,2257.6,2257.0,13.30228282]
[1750679480576,0.6189,2257.6,2257.0,3.021213]
[1750679480781,0.6189,2257.4,2257.0,3.021213]
[1750679480982,0.80659,2257.7,2257.0,3.021213]
[1750679480983,0.6189,2257.3,2257.0,3.021213]
[1750679481217,0.6189,2257.3,2257.0,13.30228282]
[1750679481414,1.934,2257.2,2257.0,15.07560899]
[1750679481924,1.934,2257.3,2257.0,19.50623654]
[1750679482089,0.6189,2257.5,2257.0,19.50623654]
[1750679482292,1.934,2257.4,2257.0,19.50623654]
[1750679482495,1.934,2257.4,2257.0,15.07560899]
[1750679483223,1.934,2257.4,2257.0,19.5062573]
[1750679483527,1.934,2257.4,2257.1,1.00695445]
[1750679484696,0.6189,2257.5,2257.1,1.00695445]
[1750679484912,2.5529,2257.5,2257.1,1.00695445]
[1750679485222,2.5529,2257.5,2257.0,15.07560899]
[1750679485423,2.5529,2257.5,2257.0,13.30228282]
[1750679485719,2.5529,2257.5,2257.0,3.021213]
[1750679486523,9.268,2257.4,2257.0,3.021213]
[1750679486825,1.934,2257.3,2257.0,3.021213]
[1750679488518,1.934,2257.3,2257.0,3.81155009]
[1750679489350,1.934,2257.3,2257.0,3.021213]
[1750679491019,1.934,2257.3,2257.1,7.00394555]
[1750679491738,1.933123,2257.3,2257.1,7.00394555]
[1750679494262,1.933123,2257.3,2257.0,3.021213]
[1750679494773,0.6189,2257.2,2257.0,3.021213]
[1750679495464,1.6075023,2257.2,2257.0,3.021213]
[1750679498757,0.6189,2257.1,2257.0,3.021213]
[1750679499164,9.8719,2257.1,2257.0,3.021213]
[1750679500771,9.252,2257.1,2257.0,3.021213]
[1750679502482,9.8709,2257.1,2257.0,3.021213]
[1750679505886,10.85799,2257.1,2257.0,3.021213]
[1750679507297,9.227,2257.9,2257.1,10.7751]
[1750679507592,9.227,2257.9,2257.4,7.00394555]
[1750679508158,0.6189,2257.8,2257.4,7.00394555]
[1750679508576,0.6189,2257.8,2257.2,7.00394555]
[1750679508772,1.60349,2257.8,2257.2,7.00394555]
[1750679509010,9.257,2257.7,2257.2,7.00394555]
[1750679510229,9.257,2257.7,2257.1,0.7751]
[1750679510444,9.257,2257.7,2257.1,7.00394555]
[1750679511598,9.257,2257.7,2257.0,3.021213]
[1750679511599,9.257,2257.7,2257.3,7.00394555]
[1750679511784,1.086049,2257.7,2257.5,7.00394555]
[1750679511985,9.254,2257.6,2257.5,7.00394555]
[1750679512419,0.6189,2257.8,2257.5,7.00394555]
[1750679512606,9.254,2257.7,2257.5,7.00394555]
[1750679513421,9.254,2257.7,2257.3,7.77904555]
[1750679514201,9.254,2257.7,2257.5,7.00394555]
[1750679515905,9.254,2257.7,2257.3,7.77904555]
[1750679516118,0.98729,2257.6,2257.3,7.00394555]
[1750679516438,9.254,2257.7,2257.3,7.00394555]
[1750679517736,9.254,2257.7,2257.2,7.00394555]
[1750679518438,9.254,2257.7,2257.4,7.00394555]
[1750679518866,9.254,2257.7,2257.3,7.00394555]
[1750679519626,0.6189,2258.6,2257.7,0.802]
[1750679519947,1.917,2258.9,2258.5,7.00394555]
[1750679520145,1.917,2258.9,2258.7,7.00394555]
[1750679520349,1.917,2258.9,2258.2,0.802]
[1750679520660,0.25359,2258.8,2258.2,7.80594555]
[1750679520822,0.25359,2258.8,2258.2,7.00394555]
[1750679520823,0.6189,2258.7,2258.2,7.00394555]
[1750679521025,7.358,2258.6,2258.2,7.00394555]
[1750679522062,7.358,2258.6,2258.0,10.802]
[1750679522228,7.358,2258.6,2258.0,11.06291094]
[1750679522419,7.358,2258.6,2258.0,13.05499606]
[1750679522856,0.6189,2258.7,2258.0,17.9253648]
[1750679523058,0.6189,2258.7,2258.3,14.68893755]
[1750679523059,1.917,2258.7,2258.3,14.68893755]
[1750679523228,1.917,2258.7,2258.4,4.42790818]
[1750679523656,1.917,2258.7,2258.5,0.8182]
[1750679523857,1.917,2258.7,2258.5,2.36890191]
[1750679524302,1.917,2258.7,2258.5,6.79651327]
[1750679524462,1.917,2258.7,2258.6,14.68843241]
[1750679525610,1.916,2259.1,2258.6,14.68843241]
[1750679525762,1.916,2259.1,2258.7,4.42728672]
[1750679525956,1.916,2259.1,2258.9,5.20813254]
[1750679526359,1.916,2259.5,2259.1,4.42644917]
[1750679526589,1.916,2259.5,2259.0,14.68755088]
[1750679526865,1.916,2259.5,2259.1,0.7813]
[1750679527087,1.916,2259.5,2259.1,5.20783309]
[1750679527287,1.916,2259.5,2259.2,6.415886]
[1750679527502,1.916,2259.5,2259.2,1.98954719]
[1750679527978,1.916,2259.5,2259.2,6.41579124]
[1750679528177,1.916,2259.5,2259.2,1.98954719]
[1750679528890,1.916,2259.5,2259.1,0.7813]
[1750679529674,11.2649,2259.6,2259.1,0.7813]
[1750679529900,1.916,2259.5,2259.1,0.7813]
[1750679531513,1.916,2259.5,2258.9,10.8328]
[1750679533423,0.6189,2259.3,2258.3,11.04811094]
[1750679533599,0.6189,2259.3,2258.6,10.26091094]
[1750679533785,0.6189,2259.3,2258.7,4.42725549]
[1750679533980,9.268,2259.2,2258.8,0.7872]
[1750679534525,9.268,2259.2,2258.9,10.26091094]
[1750679535305,9.268,2259.2,2258.8,0.7872]
[1750679535641,10.25669,2259.2,2258.6,0.8159]
[1750679535795,9.268,2259.2,2258.6,0.8159]
[1750679536850,9.268,2259.2,2258.5,10.26091094]
[1750679537542,0.6189,2259.1,2258.4,10.802]
[1750679537994,10.0,2259.1,2258.2,11.03181094]
[1750679538194,0.6189,2259.0,2258.2,11.03181094]
[1750679538439,0.6189,2259.0,2258.2,12.17916081]
[1750679538440,2.60759,2259.0,2258.2,12.17916081]
[1750679539421,0.6189,2258.9,2258.2,12.17916081]
[1750679542466,0.6189,2258.9,2258.0,1.2248878]
[1750679542768,0.6189,2258.9,2258.0,11.19144225]
[1750679542942,0.6189,2258.9,2258.1,0.40824225]
[1750679543260,0.6189,2258.9,2258.0,1.23756411]
[1750679543468,0.6189,2258.9,2258.0,1.64581248]
[1750679543657,1.879659,2258.9,2258.1,1.19067234]
[1750679545045,0.6189,2258.8,2258.1,1.19067234]
[1750679545269,9.302,2258.7,2258.1,1.59956698]
[1750679545469,9.302,2258.7,2258.1,1.19067234]
[1750679545645,9.302,2258.7,2258.1,1.59956349]
[1750679547049,0.6189,2258.6,2258.1,1.59956349]
[1750679547258,0.6189,2258.6,2258.1,1.59970862]
[1750679547968,0.6189,2258.6,2258.2,0.40903628]
[1750679548155,0.6189,2258.6,2258.3,0.40987573]
[1750679548356,0.6189,2258.6,2258.3,6.99579521]
[1750679548684,0.6189,2258.6,2258.4,0.40987573]
[1750679549260,0.6189,2258.6,2258.3,6.99579521]
[1750679549562,0.6189,2258.6,2258.4,0.40987317]
[1750679549734,0.6189,2258.6,2258.4,0.40987279]
[1750679550070,0.6189,2258.6,2258.4,0.40987195]
[1750679550236,0.6189,2258.6,2258.3,6.99579521]
[1750679550438,0.6189,2258.6,2258.3,7.81444197]
[1750679552085,0.6189,2258.6,2258.5,6.99579521]
[1750679552380,1.948,2258.6,2258.5,6.99579521]
[1750679552534,1.948,2258.6,2258.3,0.81864676]
[1750679552729,1.948,2258.6,2258.2,6.99579521]
[1750679553760,0.6189,2258.5,2258.2,6.99579521]
[1750679555172,0.6189,2258.5,2258.1,1.19067234]
[1750679556871,0.6189,2258.5,2258.1,10.0]
[1750679557774,0.6189,2258.5,2258.2,0.41009261]
[1750679557973,0.6189,2258.5,2258.2,0.41008868]
[1750679558169,0.6189,2258.5,2258.2,0.41008606]
[1750679558541,0.6189,2258.5,2258.0,0.41016358]
[1750679558736,0.6189,2258.5,2257.6,15.24305439]
[1750679558737,0.6189,2258.5,2257.9,6.99579521]
[1750679558932,0.6189,2258.4,2258.0,0.41016358]
[1750679559366,0.6189,2258.4,2258.0,10.41016358]
[1750679559675,0.6189,2258.4,2258.1,0.41012994]
[1750679559973,0.6189,2258.4,2257.9,10.41012994]
[1750679560138,0.6189,2258.4,2258.0,0.41012994]
[1750679560339,0.6189,2258.4,2257.9,10.0]
[1750679560663,0.6189,2258.4,2257.9,11.74401933]
[1750679565377,1.949,2258.3,2258.1,10.0]
[1750679565784,2.5679,2258.3,2257.9,8.73981454]
[1750679566680,0.6189,2258.3,2258.1,6.99579521]
[1750679566857,1.949,2258.2,2258.1,6.99579521]
[1750679567053,1.949,2258.2,2258.1,0.87398145]
[1750679567254,1.949,2258.2,2258.0,6.99579521]
[1750679568162,0.6189,2258.5,2258.0,6.99579521]
[1750679568491,1.924,2258.6,2258.1,6.99579521]
[1750679568713,1.924,2258.5,2258.1,6.99579521]
[1750679569050,0.6189,2258.4,2258.0,6.99579521]
[1750679569344,0.6189,2258.4,2258.1,0.87398145]
[1750679571474,0.6189,2258.4,2258.0,6.99579521]
[1750679576507,0.6189,2258.4,2258.2,6.99579521]
[1750679577204,0.6189,2258.9,2258.2,6.99579521]
[1750679577403,0.6189,2258.9,2258.1,0.8283]
[1750679577404,1.924,2258.8,2258.4,6.99579521]
[1750679578311,1.06203141,2259.4,2258.1,0.8283]
[1750679578312,1.924,2259.0,2258.6,11.42324319]
[1750679578474,1.924,2259.0,2258.9,7.82409521]
[1750679578808,1.924,2259.0,2258.9,12.25102867]
[1750679579268,1.924,2259.0,2258.9,22.25102867]
[1750679580390,1.924,2259.4,2259.0,4.42664831]
[1750679580580,1.924,2259.4,2259.1,9.22086956]
[1750679583736,1.924,2259.4,2259.1,9.66720828]
[1750679584097,1.923,2259.4,2259.3,6.99579521]
[1750679585599,0.55,2260.3,2259.5,0.8068]
[1750679585600,1.923,2260.2,2259.5,0.8068]
[1750679585809,1.923,2260.2,2260.0,6.99579521]
[1750679586327,0.2250767,2261.5,2260.0,6.99579521]
[1750679586489,0.2250767,2261.5,2260.1,0.8068]
[1750679586490,1.923,2261.1,2260.1,0.8068]
[1750679586808,10.6189,2261.0,2260.1,7.80259521]
[1750679586984,1.25419,2260.9,2260.3,6.99579521]
[1750679587191,7.22087191,2261.5,2260.1,2.47202464]
[1750679587192,0.2250767,2261.5,2260.6,10.0]
[1750679587387,2.5419,2261.4,2260.6,6.99579521]
[1750679588128,2.5419,2261.4,2260.5,6.99579521]
[1750679588129,0.6189,2261.2,2260.5,6.99579521]
[1750679588521,0.6189,2261.2,2260.2,0.7652]
[1750679588522,0.6189,2261.2,2260.7,6.99579521]
[1750679588843,9.262,2261.1,2260.6,6.99579521]
[1750679588996,1.923,2261.0,2260.6,6.99579521]
[1750679589732,2.91169,2261.0,2260.3,7.43966846]
[1750679589892,1.923,2260.9,2260.5,6.99579521]
[1750679590094,1.923,2260.9,2260.6,6.99579521]
[1750679590309,1.923,2260.9,2260.4,10.23866818]
[1750679590710,2.8497,2260.9,2260.4,10.23866818]
[1750679592499,0.9267,2260.9,2260.4,10.23866818]
[1750679592696,1.923,2260.8,2260.4,10.23866818]
[1750679593115,0.6189,2261.2,2260.5,0.7727]
[1750679593312,1.923,2261.1,2260.7,10.23866818]
[1750679594021,0.2250767,2261.5,2260.7,10.23866818]
[1750679594237,0.2250767,2261.5,2260.8,0.8039]
[1750679594434,9.264,2261.4,2260.8,0.8039]
[1750679594604,0.94890767,2261.3,2260.8,0.8039]
[1750679595135,1.923,2261.2,2260.8,0.8039]
[1750679595810,1.922,2261.1,2260.8,0.8039]
[1750679598774,1.922,2261.1,2260.6,0.7968]
[1750679599303,1.941,2261.2,2260.6,0.7968]
[1750679599638,1.941,2261.2,2260.7,11.76072592]
[1750679600004,1.941,2261.2,2260.7,16.18412936]
[1750679600203,1.941,2261.2,2260.7,11.76072592]
[1750679601406,1.941,2261.2,2260.8,0.7923]
[1750679601620,2.1660767,2261.5,2260.9,4.42301147]
[1750679601906,0.2250767,2261.5,2260.8,10.7923]
[1750679602135,1.941,2261.4,2260.8,10.7923]
[1750679603037,0.7951,2261.3,2260.8,0.7923]
[1750679603555,0.7951,2261.3,2260.5,10.7705]
[1750679606018,0.7951,2261.3,2260.5,0.7705]
[1750679606223,0.7897,2261.1,2260.3,1.2423469]
[1750679606425,0.7897,2261.1,2260.3,0.7932]
[1750679607316,0.7897,2261.1,2260.4,10.0]
[1750679607513,0.7897,2261.1,2260.3,0.7932]
[1750679607754,0.7897,2261.1,2260.3,1.22875649]
[1750679607939,0.7897,2261.1,2260.4,10.0]
[1750679610420,0.7897,2261.1,2260.3,1.22875649]
[1750679610625,1.941,2261.0,2260.3,1.22875649]
[1750679611773,0.8072,2260.9,2260.3,1.22875649]
[1750679611969,0.8072,2260.9,2260.3,0.43555649]
[1750679612169,0.8072,2260.9,2260.3,2.86444691]
[1750679612369,0.8072,2260.9,2260.6,6.98138236]
[1750679613158,0.8072,2260.9,2260.4,6.98138236]
[1750679613654,0.8072,2260.9,2260.3,0.45289469]
[1750679613861,0.8072,2260.9,2260.3,6.98138236]
[1750679614057,1.08202,2260.9,2260.3,6.98138236]
[1750679614363,1.08202,2260.9,2260.5,6.98138236]
[1750679614565,0.8072,2260.9,2260.5,6.98138236]
[1750679614747,1.941,2260.8,2260.5,6.98138236]
[1750679615646,1.941,2260.8,2260.7,6.98138236]
[1750679616655,1.941,2260.8,2260.5,7.79868236]
[1750679616861,1.941,2260.8,2260.3,1.26461332]
[1750679617031,1.941,2260.8,2260.5,6.98138236]
[1750679617226,1.941,2260.8,2260.3,10.45391332]
[1750679617227,0.7827,2260.7,2260.3,10.45391332]
[1750679618361,0.7827,2260.7,2260.3,0.45391332]
[1750679618664,0.7827,2260.7,2260.2,10.0]
[1750679619162,0.7827,2260.7,2260.1,2.140602]
[1750679619363,1.05507,2260.7,2260.1,12.140602]
[1750679620283,0.7827,2260.7,2260.1,16.56516868]
[1750679620639,0.7827,2260.7,2260.1,12.140602]
[1750679622077,0.7827,2260.7,2260.1,16.56507848]
[1750679622277,0.7827,2260.7,2260.1,12.140602]
[1750679622572,0.7827,2260.7,2260.1,12.5767846]
[1750679622741,0.7827,2260.7,2260.1,11.7660846]
[1750679623345,1.05507,2260.7,2260.1,11.7660846]
[1750679623670,1.05507,2260.7,2260.1,10.4361826]
[1750679624376,0.7827,2260.7,2260.1,10.4361826]
[1750679624741,0.7827,2260.7,2260.1,14.8607602]
[1750679625254,0.7827,2260.7,2260.1,10.4361826]
[1750679625478,0.7827,2260.7,2260.1,14.86068092]
[1750679626363,0.7827,2260.7,2260.3,0.7936]
[1750679626692,1.941,2260.7,2260.4,10.0]
[1750679628896,0.7559,2260.8,2260.4,10.0]
[1750679629097,1.936,2260.7,2260.4,10.0]
[1750679629381,1.936,2260.7,2260.4,14.42397545]
[1750679629542,1.936,2260.7,2260.4,10.0]
[1750679631448,0.7788,2260.6,2260.4,10.0]
[1750679631644,1.936,2260.7,2260.4,10.0]
[1750679632862,1.936,2260.7,2260.1,11.2002826]
[1750679633050,1.936,2260.7,2260.3,10.0]
[1750679633379,1.936,2260.7,2260.2,1.329902]
[1750679633596,0.7589,2260.6,2260.1,10.4361826]
[1750679633895,0.7589,2260.6,2260.1,11.7662256]
[1750679634783,1.936,2261.0,2260.4,0.7672]
[1750679634953,0.7513,2260.8,2260.3,20.24152926]
[1750679635153,0.7513,2260.8,2260.3,10.0]
[1750679637083,0.7513,2260.8,2260.3,14.42416177]
[1750679637285,1.936,2260.9,2260.4,4.42399441]
[1750679637788,0.8158,2261.0,2260.4,4.42399441]
[1750679638002,1.936,2260.9,2260.5,12.12634488]
[1750679638284,1.936,2260.9,2260.7,6.98039023]
[1750679639794,0.2250767,2261.5,2260.8,4.42311657]
[1750679639795,1.936,2261.3,2260.8,4.42311657]
[1750679639960,1.936,2261.3,2260.9,6.98039023]
[1750679640157,1.936,2261.4,2261.2,6.98039023]
[1750679640571,0.2250767,2261.5,2261.2,11.40278088]
[1750679640774,0.2250767,2261.5,2261.4,6.98039023]
[1750679641791,0.2250767,2261.5,2261.4,21.40242967]
[1750679642095,0.2250767,2261.5,2261.4,22.20812967]
[1750679642285,0.2250767,2261.5,2261.4,17.89077309]
[1750679642793,0.2250767,2261.5,2261.4,13.46873365]
[1750679643090,0.2250767,2261.5,2261.4,17.89077309]
[1750679643695,0.2250767,2261.5,2261.4,13.46873365]
[1750679643857,0.2250767,2261.5,2261.4,14.79793465]
[1750679644060,0.2250767,2261.5,2261.4,1.329201]
[1750679644289,1.0371767,2261.5,2261.0,4.42270061]
[1750679644488,1.0371767,2261.5,2260.9,10.22980556]
[1750679644489,2.9731767,2261.5,2260.9,15.98209202]
[1750679644693,2.9731767,2261.5,2260.9,11.55921856]
[1750679644867,2.9731767,2261.5,2260.8,0.8291]
[1750679645066,2.9731767,2261.5,2260.8,2.37731666]
[1750679645299,0.8121,2261.4,2260.7,1.329601]
[1750679645610,1.0371767,2261.5,2261.0,11.05890556]
[1750679645766,1.0371767,2261.5,2261.1,10.0]
[1750679646598,1.936,2261.4,2261.1,10.0]
[1750679646985,0.2250767,2261.5,2261.1,14.42262517]
[1750679647191,2.1610767,2261.5,2261.1,14.42262517]
[1750679647500,2.1610767,2261.5,2261.1,10.0]
[1750679647697,0.2250767,2261.5,2261.1,10.0]
[1750679647866,1.936,2261.4,2261.1,10.0]
[1750679648062,1.936,2261.4,2261.1,12.99045578]
[1750679648261,1.936,2261.4,2261.1,10.0]
[1750679649293,1.936,2261.4,2261.1,11.329442]
[1750679649591,0.2250767,2261.5,2261.1,10.0]
[1750679649792,0.7804,2261.3,2261.1,10.0]
[1750679650303,1.936,2261.4,2261.1,10.0]
[1750679650468,1.936,2261.3,2261.1,13.04051151]
[1750679651070,1.936,2261.3,2261.1,17.46312652]
[1750679651495,1.936,2261.3,2261.1,13.04051151]
[1750679651799,1.0054767,2261.5,2261.1,10.22980556]
[1750679651975,0.2250767,2261.5,2261.2,5.21620592]
[1750679652697,0.2250767,2261.5,2261.0,26.77591727]
[1750679652871,0.2250767,2261.5,2261.0,26.77587132]
[1750679653065,0.2250767,2261.5,2261.1,4.42260319]
[1750679653267,0.2250767,2261.5,2261.2,3.11984745]
[1750679656020,2.1610767,2261.5,2261.2,7.54217657]
[1750679656521,2.1610767,2261.5,2261.2,3.11984745]
[1750679656717,2.1610767,2261.5,2261.2,7.54216403]
[1750679657417,2.1610767,2261.5,2261.2,3.11984745]
[1750679657585,2.9744767,2261.5,2261.0,22.35321356]
[1750679657985,2.9744767,2261.5,2261.0,1.329508]
[1750679659281,1.0384767,2261.5,2261.0,11.329508]
[1750679659481,1.946,2261.4,2261.0,15.75228567]
[1750679659690,1.0384767,2261.5,2261.0,25.98209123]
[1750679659918,1.946,2261.4,2261.1,3.04051056]
[1750679660316,1.0384767,2261.5,2261.1,3.04051056]
[1750679660520,1.946,2261.3,2261.1,3.04051056]
[1750679661427,1.0384767,2261.5,2261.1,3.04051056]
[1750679661786,1.946,2261.4,2261.1,7.46311521]
[1750679661983,1.946,2261.4,2261.2,2.90224288]
[1750679662196,0.2250767,2261.5,2261.2,2.90224288]
[1750679662422,2.1710767,2261.5,2261.2,2.90224288]
[1750679662730,2.1710767,2261.5,2261.2,4.23155088]
[1750679665420,2.1710767,2261.5,2260.8,0.45166174]
[1750679665421,0.8149,2261.4,2260.8,0.45166174]
[1750679665624,0.8149,2261.2,2260.6,10.0]
[1750679665815,0.8149,2261.2,2260.6,10.44154107]
[1750679666395,0.8149,2261.2,2260.6,0.44154107]
[1750679666598,0.8149,2261.2,2260.6,11.18433113]
[1750679666796,0.8149,2261.2,2260.6,1.18433113]
[1750679667094,0.8149,2261.2,2260.6,11.18433113]
[1750679667422,0.8149,2261.2,2260.6,10.0]
[1750679667853,0.8149,2261.2,2260.2,8.3075651]
[1750679667994,11.4429,2261.2,2260.2,8.3075651]
[1750679668194,0.8121,2261.1,2260.2,1.76556288]
[1750679668434,1.946,2261.0,2260.2,0.43577788]
[1750679668605,0.8154,2260.9,2260.1,10.0]
[1750679668809,0.8154,2260.7,2260.1,11.77389801]
[1750679669015,7.344,2260.6,2260.1,11.77389801]
[1750679669211,2.7614,2260.5,2260.1,11.77389801]
[1750679669428,2.7614,2260.5,2259.8,2.090132]
[1750679669429,2.7614,2260.5,2259.8,6.9777801]
[1750679670445,2.7614,2260.5,2259.6,15.44513177]
[1750679670596,0.7971,2260.4,2259.6,11.01958639]
[1750679670931,0.7971,2260.4,2259.7,10.0]
[1750679671137,0.7971,2260.4,2259.7,13.64470598]
[1750679672450,9.293,2260.3,2259.7,13.64470598]
[1750679673232,1.946,2260.2,2259.7,13.64470598]
[1750679674098,1.946,2260.1,2259.7,13.64470598]
[1750679675810,0.8301,2260.0,2259.6,10.69110529]
[1750679676208,0.8301,2260.0,2259.6,20.69110529]
[1750679676440,0.8301,2260.0,2259.7,10.0]
[1750679677535,0.8301,2260.0,2259.6,0.4455189]
[1750679677738,0.8301,2260.0,2259.4,15.19344585]
[1750679677944,0.8301,2260.0,2259.3,4.42614498]
[1750679678104,0.8301,2260.0,2259.1,4.42654154]
[1750679678105,0.8301,2260.0,2259.5,10.24558639]
[1750679678307,1.947,2259.9,2259.5,10.24558639]
[1750679678702,0.8301,2260.0,2259.5,10.24558639]
[1750679678906,1.947,2259.9,2259.5,10.24558639]
[1750679679305,1.947,2259.9,2259.5,10.69362529]
[1750679680243,1.947,2259.9,2259.5,0.4480389]
[1750679680540,1.947,2259.9,2259.2,25.48322493]
[1750679680750,1.947,2259.9,2259.3,2.99097589]
[1750679682039,0.8105,2259.8,2259.3,2.99097589]
[1750679682343,0.8105,2259.8,2259.2,21.05698639]
[1750679683055,0.8105,2259.8,2259.2,20.24558639]
[1750679683551,0.8105,2259.8,2259.2,20.69189747]
[1750679684206,0.8105,2259.8,2259.2,25.11815891]
[1750679685542,0.8105,2259.8,2259.2,20.69189747]
[1750679685844,0.8105,2259.8,2259.2,23.78255589]
[1750679686222,1.947,2259.7,2259.2,28.20886874]
[1750679686456,1.947,2259.7,2259.2,23.78255589]
[1750679687348,0.7969,2259.6,2259.2,13.5369695]
[1750679687721,0.7969,2259.6,2259.2,0.44631108]
[1750679687927,0.7969,2259.6,2259.1,10.0]
[1750679690717,1.936,2259.5,2259.1,14.87375242]
[1750679691467,1.936,2259.5,2259.1,10.44722345]
[1750679691749,1.936,2259.5,2259.1,14.8737398]
[1750679691951,0.7969,2259.6,2259.1,14.87366232]
[1750679692246,1.937,2259.5,2259.4,6.98818407]
[1750679694977,0.8217,2259.4,2259.1,17.43540752]
[1750679695177,0.7952,2260.0,2259.3,6.98818407]
[1750679695338,0.7952,2260.0,2259.5,6.98818407]
[1750679695542,3.07992,2259.9,2259.5,6.98818407]
[1750679696491,0.7655,2259.8,2259.1,17.44019351]
[1750679697859,0.7655,2259.8,2259.3,6.98818407]
[1750679698350,0.7655,2259.8,2259.1,10.0]
[1750679700064,0.7655,2259.8,2259.0,0.45270443]
[1750679700284,0.7824,2259.6,2258.8,10.0]
[1750679700452,0.7824,2259.6,2258.7,10.25045368]
[1750679700652,0.7824,2259.6,2258.5,4.42764662]
[1750679700852,0.7824,2259.6,2258.6,10.0]
[1750679701059,0.7824,2259.6,2258.5,10.43475756]
[1750679701262,0.7824,2259.6,2258.5,3.47055515]
[1750679701666,0.7824,2259.6,2258.5,13.47055515]